bitfinex/quotes_SOLUSD_20251120
["timestamp","ask_amount","ask_price","bid_price","bid_amount"]
[1763670876438,50.0,133.98,133.94,12.0970205]
[1763670876756,50.0,133.98,133.92,9.78882769]
[1763670876757,1.84,133.97,133.95,12.0970205]
[1763670877054,1.84,133.97,133.96,12.0970205]
[1763670877239,1.84,134.0,133.96,12.7770205]
[1763670877552,1.84,134.0,133.97,12.0970205]
[1763670877742,1.84,134.0,133.97,12.7770205]
[1763670878057,1.84,134.0,133.98,12.0970205]
[1763670879450,1.84,134.0,133.97,12.7770205]
[1763670879951,1.84,134.0,133.97,0.68]
[1763670880262,1.84,134.0,133.98,12.0970205]
[1763670880552,1.84,134.03,133.99,12.0970205]
[1763670880757,1.84,134.03,134.0,12.0970205]
[1763670882352,1.84,134.03,134.02,12.0970205]
[1763670882526,1.84,134.03,134.01,12.0970205]
[1763670882934,1.84,134.03,134.0,12.0970205]
[1763670883941,1.84,134.03,134.01,12.0970205]
[1763670884141,51.84,134.03,134.0,12.0970205]
[1763670884345,51.84,134.03,133.99,12.0970205]
[1763670884567,64.4070205,134.03,133.98,12.0970205]
[1763670884760,12.0970205,134.02,133.97,12.7770205]
[1763670885262,12.0970205,134.02,133.97,12.0970205]
[1763670885468,62.0970205,134.0,133.94,0.68]
[1763670885648,1.84,133.99,133.96,12.0970205]
[1763670886439,0.47,133.98,133.91,0.68]
[1763670886657,0.47,133.98,133.94,12.0970205]
[1763670886956,112.5670205,133.98,133.91,0.68]
[1763670887158,112.0970205,133.96,133.91,12.0970205]
[1763670887472,1.84,133.95,133.91,12.0970205]
[1763670887847,1.84,133.95,133.92,12.0970205]
[1763670888248,1.84,133.95,133.91,12.0970205]
[1763670888733,1.84,133.95,133.92,12.0970205]
[1763670888938,1.84,133.95,133.94,12.0970205]
[1763670889843,1.84,133.95,133.91,12.0970205]
[1763670890262,1.84,133.95,133.93,12.0970205]
[1763670890559,1.84,133.95,133.93,12.7570205]
[1763670890759,1.84,133.95,133.93,12.0970205]
[1763670891071,1.84,133.95,133.92,12.0970205]
[1763670892264,1.84,133.95,133.93,12.0970205]
[1763670894670,1.84,133.95,133.94,12.0970205]
[1763670894847,1.84,133.95,133.94,12.7570205]
[1763670895689,1.84,133.95,133.9,0.66]
[1763670895690,2.31,133.95,133.9,0.66]
[1763670895845,14.4070205,133.95,133.9,12.7570205]
[1763670896198,62.0970205,133.92,133.88,0.1]
[1763670896489,1.84,133.91,133.88,0.1]
[1763670896672,2.31,133.91,133.88,0.1]
[1763670897186,14.4070205,133.91,133.88,0.1]
[1763670897972,2.31,133.91,133.88,0.1]
[1763670898171,50.0,133.9,133.88,0.1]
[1763670898372,12.0970205,133.89,133.88,0.1]
[1763670898574,18.12096,133.91,133.88,0.1]
[1763670898874,64.4070205,133.9,133.88,0.1]
[1763670899477,52.31,133.9,133.88,0.1]
[1763670899772,0.47,133.89,133.88,0.1]
[1763670900460,50.47,133.89,133.88,0.1]
[1763670900662,51.84,133.9,133.88,0.1]
[1763670900858,64.4070205,133.9,133.88,0.1]
[1763670901067,62.5670205,133.89,133.88,0.1]
[1763670901455,51.84,133.9,133.88,0.1]
[1763670901762,64.4070205,133.9,133.88,0.1]
[1763670901962,62.5670205,133.89,133.88,0.1]
[1763670902170,1.84,133.89,133.88,0.1]
[1763670902370,50.47,133.94,133.88,12.8570205]
[1763670902570,50.47,133.94,133.89,12.0970205]
[1763670902571,1.84,133.93,133.89,12.0970205]
[1763670902881,50.0,133.92,133.89,7.7560084]
[1763670903059,1.84,133.93,133.9,7.7560084]
[1763670903254,50.0,133.94,133.91,7.7560084]
[1763670903477,1.84,133.93,133.91,7.7560084]
[1763670903680,1.84,133.93,133.9,7.7560084]
[1763670903979,1.84,133.93,133.91,7.7560084]
[1763670904181,1.84,133.93,133.88,0.1]
[1763670904370,50.0,133.91,133.88,0.1]
[1763670904884,50.0,133.91,133.88,7.8560084]
[1763670905089,50.47,133.91,133.88,7.8560084]
[1763670905381,1.84,133.93,133.9,7.7560084]
[1763670905562,1.84,133.93,133.89,0.66]
[1763670905886,70.43096,133.93,133.9,7.7560084]
[1763670906060,69.96096,133.93,133.9,7.7560084]
[1763670906254,1.84,133.93,133.92,7.7560084]
[1763670906460,50.0,133.97,133.92,7.7560084]
[1763670906660,50.0,133.97,133.94,7.7560084]
[1763670906876,1.84,133.96,133.94,7.7560084]
[1763670907078,1.84,133.96,133.95,8.4160084]
[1763670907464,1.84,133.96,133.95,7.7560084]
[1763670908072,1.84,133.96,133.95,8.4160084]
[1763670909470,1.84,133.96,133.92,0.66]
[1763670909666,1.84,133.96,133.93,7.7560084]
[1763670911073,1.84,133.96,133.9,9.78882769]
[1763670911286,6.85610113,133.96,133.93,7.7560084]
[1763670911685,1.84,133.96,133.93,7.7560084]
[1763670911994,1.84,133.96,133.95,7.7560084]
[1763670913092,1.84,133.96,133.94,8.4160084]
[1763670913266,1.84,133.96,133.94,0.66]
[1763670913464,1.84,133.96,133.93,7.7560084]
[1763670913876,1.84,133.96,133.93,8.4160084]
[1763670914085,0.84,133.96,133.94,0.66]
[1763670914283,6.09468311,133.96,133.93,7.7560084]
[1763670914480,6.09468311,133.96,133.94,0.66]
[1763670914792,0.84,133.96,133.94,0.66]
[1763670915193,0.84,133.96,133.93,7.7560084]
[1763670915520,5.72497486,133.95,133.91,7.7560084]
[1763670915663,5.72497486,133.95,133.89,0.66]
[1763670915664,7.7560084,133.92,133.88,0.1]
[1763670915867,68.12096,133.93,133.88,0.1]
[1763670915868,59.5960084,133.91,133.88,0.1]
[1763670916069,57.7560084,133.89,133.88,0.1]
[1763670916617,50.0,133.89,133.88,0.1]
[1763670916903,51.84,133.91,133.88,0.1]
[1763670917317,0.47,133.9,133.88,0.1]
[1763670917474,50.0,133.89,133.88,0.1]
[1763670919114,1.84,133.91,133.88,0.1]
[1763670919115,51.84,133.91,133.88,0.1]
[1763670919606,59.5960084,133.91,133.88,0.1]
[1763670919908,1.84,133.91,133.89,8.4160084]
[1763670920224,1.84,133.91,133.88,0.1]
[1763670920225,52.31,133.91,133.88,0.1]
[1763670920408,8.2260084,133.9,133.88,0.1]
[1763670920708,69.96096,133.91,133.88,0.8]
[1763670920999,51.84,133.91,133.88,0.1]
[1763670921197,60.0660084,133.91,133.88,0.1]
[1763670921407,50.0,133.89,133.88,0.1]
[1763670921609,51.84,133.91,133.88,0.1]
[1763670922301,50.0,133.93,133.88,0.8]
[1763670922619,50.0,133.95,133.88,18.92096]
[1763670922771,6.22136137,134.01,133.97,18.12096]
[1763670922977,1.84,134.06,134.03,18.12096]
[1763670923213,1.84,134.06,134.05,7.7560084]
[1763670923620,50.69,134.09,134.03,18.12096]
[1763670923786,50.69,134.09,133.86,16.18873491]
[1763670923788,18.32096,134.32,134.31,1.99999999]
[1763670923982,91.03201276,134.44,134.31,1.99999999]
[1763670923983,1.9,134.48,134.39,9.78882769]
[1763670924186,7.7560084,134.56,134.36,7.7560084]
[1763670924187,1.46,134.43,134.36,7.7560084]
[1763670924434,1.46,134.43,134.27,1.9]
[1763670924435,1.46,134.43,134.29,1.99999999]
[1763670924589,7.7560084,134.37,134.27,25.8769684]
[1763670924786,100.0,134.41,134.3,1.99999999]
[1763670924982,57.7560084,134.34,134.27,1.99999999]
[1763670925182,100.0,134.35,134.34,1.99999999]
[1763670925430,1.9,134.39,134.33,1.99999999]
[1763670925716,52.59,134.39,134.34,1.99999999]
[1763670926015,2.59,134.39,134.34,1.99999999]
[1763670926219,0.69,134.38,134.34,1.99999999]
[1763670926379,0.69,134.38,134.32,1.99999999]
[1763670926579,8.4460084,134.38,134.32,1.99999999]
[1763670926803,8.4460084,134.38,134.28,18.12096]
[1763670926804,7.7560084,134.36,134.33,1.99999999]
[1763670927014,7.7560084,134.36,134.29,9.75600839]
[1763670927015,1.9,134.35,134.29,9.75600839]
[1763670927221,1.9,134.35,134.33,1.99999999]
[1763670927381,1.9,134.35,134.34,1.99999999]
[1763670928218,1.9,134.35,134.32,1.99999999]
[1763670928379,0.69,134.34,134.32,1.99999999]
[1763670928588,1.9,134.35,134.32,1.99999999]
[1763670929290,0.69,134.34,134.31,1.99999999]
[1763670929488,0.69,134.34,134.32,1.99999999]
[1763670929785,0.69,134.34,134.31,1.99999999]
[1763670930090,0.69,134.34,134.32,1.99999999]
[1763670930424,0.69,134.34,134.27,18.12096]
[1763670930425,18.81096,134.34,134.27,1.99999999]
[1763670930598,7.7560084,134.32,134.28,1.99999999]
[1763670930915,68.12096,134.33,134.25,9.75600839]
[1763670930916,2.55,134.31,134.25,9.75600839]
[1763670931085,10.3060084,134.31,134.28,1.99999999]
[1763670931509,0.65,134.3,134.28,1.99999999]
[1763670932028,0.65,134.3,134.26,1.99999999]
[1763670932207,0.65,134.3,134.28,1.99999999]
[1763670932735,0.65,134.3,134.25,7.7560084]
[1763670932736,0.65,134.3,134.26,1.99999999]
[1763670932917,0.65,134.3,134.28,1.99999999]
[1763670933532,8.4060084,134.3,134.25,1.99999999]
[1763670933839,8.4060084,134.3,134.27,1.99999999]
[1763670934207,0.65,134.29,134.27,1.99999999]
[1763670934808,0.65,134.29,134.23,35.66579609]
[1763670934809,7.7560084,134.28,134.23,1.99999999]
[1763670935139,7.7560084,134.26,134.19,11.78882768]
[1763670935353,7.7560084,134.25,134.23,1.99999999]
[1763670935519,7.7560084,134.25,134.21,1.99999999]
[1763670935520,7.7560084,134.24,134.21,1.99999999]
[1763670935711,9.6360084,134.23,134.21,1.99999999]
[1763670935910,0.65,134.24,134.21,1.99999999]
[1763670936230,1.88,134.23,134.21,1.99999999]
[1763670938219,2.53,134.23,134.18,1.99999999]
[1763670938415,0.65,134.22,134.18,1.99999999]
[1763670938613,8.4060084,134.22,134.19,1.99999999]
[1763670938836,8.4060084,134.22,134.17,1.99999999]
[1763670939043,8.4060084,134.21,134.19,1.99999999]
[1763670939214,8.4060084,134.21,134.15,1.99999999]
[1763670939412,7.7560084,134.2,134.15,1.99999999]
[1763670939745,1.88,134.19,134.18,1.99999999]
[1763670942522,1.88,134.19,134.13,9.78882769]
[1763670942523,2.53,134.19,134.16,1.99999999]
[1763670942740,7.7560084,134.17,134.14,1.99999999]
[1763670943243,0.65,134.17,134.14,1.99999999]
[1763670943716,0.65,134.2,134.15,1.99999999]
[1763670943917,1.88,134.19,134.15,1.99999999]
[1763670944120,7.7560084,134.16,134.13,1.99999999]
[1763670944345,1.88,134.15,134.13,1.99999999]
[1763670944712,1.88,134.15,134.1,9.75600839]
[1763670944917,0.65,134.14,134.1,1.99999999]
[1763670945221,0.65,134.14,134.13,1.99999999]
[1763670945420,0.65,134.14,134.12,1.99999999]
[1763670946820,18.77096,134.18,134.14,1.99999999]
[1763670947136,2.53,134.17,134.14,1.99999999]
[1763670947446,9.6360084,134.17,134.14,1.99999999]
[1763670947652,0.65,134.16,134.14,1.99999999]
[1763670947952,18.12096,134.17,134.13,1.99999999]
[1763670948122,1.88,134.15,134.13,1.99999999]
[1763670950244,1.88,134.14,134.13,1.99999999]
[1763670951445,1.88,134.14,134.11,1.99999999]
[1763670952452,1.88,134.14,134.08,1.99999999]
[1763670952453,8.4560084,134.13,134.08,1.99999999]
[1763670952651,18.82096,134.13,134.08,1.99999999]
[1763670952947,0.7,134.12,134.09,1.99999999]
[1763670953328,8.4560084,134.12,134.07,1.99999999]
[1763670953549,0.7,134.11,134.07,1.99999999]
[1763670953758,1.88,134.1,134.08,1.99999999]
[1763670954327,2.58,134.1,134.08,1.99999999]
[1763670954530,2.58,134.1,134.06,1.99999999]
[1763670954938,2.58,134.1,134.08,1.99999999]
[1763670955342,1.88,134.09,134.07,1.99999999]
[1763670956046,0.7,134.08,134.04,1.99999999]
[1763670956356,0.7,134.08,134.03,1.99999999]
[1763670956357,7.7560084,134.06,134.03,1.99999999]
[1763670956649,1.88,134.05,134.01,1.99999999]
[1763670956828,2.58,134.05,134.02,1.99999999]
[1763670958341,68.12096,134.08,134.02,1.99999999]
[1763670958542,2.58,134.07,134.02,1.99999999]
[1763670959040,0.7,134.06,134.02,1.99999999]
[1763670960344,8.4560084,134.06,134.0,1.99999999]
[1763670960544,7.7560084,134.04,134.01,1.99999999]
[1763670960850,1.88,134.03,134.01,1.99999999]
[1763670961061,1.88,134.03,134.01,9.75600839]
[1763670961253,1.88,134.03,134.02,1.99999999]
[1763670961639,1.88,134.03,134.02,9.75600839]
[1763670962344,18.82096,134.07,134.03,1.99999999]
[1763670962571,1.88,134.06,134.03,9.75600839]
[1763670962860,1.88,134.06,134.04,1.99999999]
[1763670963436,1.88,134.06,134.05,1.99999999]
[1763670963638,1.88,134.06,134.0,25.8769684]
[1763670963639,1.88,134.06,134.04,1.99999999]
[1763670963856,1.88,134.06,134.03,1.99999999]
[1763670964059,1.88,134.06,134.01,1.99999999]
[1763670964060,0.7,134.05,134.01,1.99999999]
[1763670964235,8.4560084,134.05,134.01,1.99999999]
[1763670964436,7.7560084,134.04,134.01,1.99999999]
[1763670964644,0.7,134.04,134.01,1.99999999]
[1763670965440,1.88,134.03,134.01,14.13620464]
[1763670965651,1.88,134.03,134.01,1.99999999]
[1763670965849,1.88,134.03,133.99,12.13620465]
[1763670966056,12.83620465,134.02,133.98,1.99999999]
[1763670966463,0.7,134.01,133.98,1.99999999]
[1763670967339,0.7,134.01,133.96,1.99999999]
[1763670967591,0.7,134.01,133.98,1.99999999]
[1763670967944,20.00096,134.03,133.98,1.99999999]
[1763670968242,2.56,134.02,133.99,1.99999999]
[1763670969360,0.7,134.01,133.96,1.99999999]
[1763670969681,0.7,134.01,133.97,1.99999999]
[1763670969885,12.13620465,133.99,133.95,1.99999999]
[1763670970085,1.86,133.98,133.96,1.99999999]
[1763670970388,1.86,133.98,133.95,1.99999999]
[1763670970389,2.56,133.98,133.95,1.99999999]
[1763670970679,0.7,133.97,133.95,1.99999999]
[1763670971059,0.7,134.0,133.96,1.99999999]
[1763670971256,1.86,133.99,133.96,1.99999999]
[1763670971573,0.7,134.02,133.98,14.13620464]
[1763670971752,0.7,134.02,133.99,1.99999999]
[1763670971753,1.86,134.01,133.99,1.99999999]
[1763670972282,1.86,134.01,133.97,1.99999999]
[1763670972283,0.7,134.0,133.97,1.99999999]
[1763670972780,12.83620465,134.0,133.94,14.23620464]
[1763670972977,12.83620465,134.0,133.96,1.99999999]
[1763670972978,12.13620465,133.99,133.96,1.99999999]
[1763670973177,30.95716465,133.99,133.95,1.99999999]
[1763670973362,0.7,133.98,133.95,1.99999999]
[1763670973571,1.86,133.97,133.96,1.99999999]
[1763670974164,1.86,133.97,133.96,14.13620464]
[1763670974782,1.86,133.97,133.96,1.99999999]
[1763670975190,2.56,133.97,133.94,0.1]
[1763670975376,0.7,133.96,133.94,0.1]
[1763670975683,12.83620465,133.96,133.94,0.1]
[1763670976181,0.7,133.95,133.94,0.1]
[1763670977182,12.83620465,133.95,133.94,0.1]
[1763670977384,30.95716465,133.95,133.88,2.09999999]
[1763670977608,30.95716465,133.95,133.89,1.99999999]
[1763670977609,12.83620465,133.94,133.89,1.99999999]
[1763670977768,1.86,133.93,133.89,14.13620464]
[1763670978092,1.86,133.93,133.9,14.13620464]
[1763670978302,1.86,133.92,133.9,14.13620464]
[1763670978591,1.86,133.92,133.91,12.13620465]
[1763670979284,1.86,133.92,133.9,14.13620464]
[1763670979673,1.86,133.92,133.88,0.2]
[1763670979674,0.7,133.97,133.92,1.99999999]
[1763670979881,1.86,133.96,133.93,1.99999999]
[1763670980074,1.86,133.96,133.93,14.13620464]
[1763670980271,2.56,133.96,133.93,14.13620464]
[1763670980487,0.72,133.98,133.94,12.13620465]
[1763670980786,0.72,133.98,133.95,14.13620464]
[1763670980972,1.86,133.97,133.95,14.13620464]
[1763670981563,1.86,133.96,133.95,14.13620464]
[1763670981982,1.86,133.96,133.94,1.99999999]
[1763670982283,1.86,133.96,133.95,1.99999999]
[1763670982860,1.86,133.96,133.95,14.13620464]
[1763670983802,1.86,133.98,133.95,14.13620464]
[1763670984187,1.86,133.98,133.97,1.99999999]
[1763670985380,2.58,133.98,133.96,1.99999999]
[1763670985794,2.58,133.98,133.94,1.99999999]
[1763670985795,0.72,133.97,133.94,1.99999999]
[1763670986002,0.72,133.97,133.9,18.22096]
[1763670986003,0.72,133.97,133.95,1.99999999]
[1763670986380,0.72,133.97,133.93,1.99999999]
[1763670986795,0.72,133.97,133.95,1.99999999]
[1763670986996,0.72,133.97,133.94,1.99999999]
[1763670987281,1.86,133.98,133.95,1.99999999]
[1763670987649,0.72,133.97,133.95,1.99999999]
[1763670988381,1.86,133.98,133.95,14.13620464]
[1763670988694,18.84096,134.0,133.97,14.13620464]
[1763670988891,1.86,134.01,134.0,1.99999999]
[1763670989110,0.72,134.08,134.03,1.99999999]
[1763670989410,55.83626716,134.14,134.07,1.99999999]
[1763670989411,0.72,134.1,134.07,1.99999999]
[1763670989709,1.86,134.09,134.07,1.99999999]
[1763670990205,1.86,134.09,134.06,1.99999999]
[1763670990206,0.66,134.08,134.06,1.99999999]
[1763670992084,0.66,134.08,134.05,1.99999999]
[1763670992507,0.66,134.08,134.04,1.99999999]
[1763670992689,0.66,134.08,134.06,1.99999999]
[1763670994207,12.79620465,134.08,134.03,1.99999999]
[1763670994400,30.25716465,134.06,134.03,1.99999999]
[1763670994710,1.86,134.05,134.03,1.99999999]
[1763670995013,2.52,134.05,134.03,1.99999999]
[1763670996293,2.52,134.05,134.02,1.99999999]
[1763670996500,2.52,134.05,134.03,1.99999999]
[1763670996501,14.65620465,134.05,134.03,1.99999999]
[1763670996703,1.86,134.05,134.03,1.99999999]
[1763670996913,2.52,134.05,134.03,1.99999999]
[1763670997111,1.86,134.05,134.03,1.99999999]
[1763670997294,1.86,134.05,134.04,14.13620464]
[1763670997888,0.66,134.12,134.06,1.99999999]
[1763670998228,13.99620465,134.11,134.08,1.99999999]
[1763670998397,12.13620465,134.09,134.08,1.99999999]
[1763670998811,12.79620465,134.09,134.08,1.99999999]
[1763670999200,0.66,134.09,134.08,1.99999999]
[1763670999402,30.91716465,134.09,134.04,1.99999999]
[1763670999613,12.13620465,134.07,134.05,1.99999999]
[1763670999918,2.52,134.06,134.05,1.99999999]
[1763671000226,32.77716465,134.06,134.0,1.99999999]
[1763671000384,12.13620465,134.03,134.01,1.99999999]
[1763671000593,1.86,134.02,134.01,1.99999999]
[1763671001211,14.65620465,134.02,133.99,1.99999999]
[1763671001395,1.86,134.02,133.99,1.99999999]
[1763671001597,1.86,134.02,134.0,1.99999999]
[1763671001809,1.86,134.02,134.01,1.99999999]
[1763671002114,2.52,134.02,133.98,1.99999999]
[1763671002316,14.65620465,134.02,134.0,1.99999999]
[1763671002812,2.52,134.02,134.0,1.99999999]
[1763671003011,12.13620465,134.01,133.99,1.99999999]
[1763671003189,12.79620465,134.01,133.99,1.99999999]
[1763671003995,13.99620465,134.02,133.99,1.99999999]
[1763671004414,0.66,134.01,133.99,1.99999999]
[1763671004721,12.79620465,134.01,133.99,1.99999999]
[1763671005127,12.13620465,134.0,133.99,1.99999999]
[1763671005301,12.79620465,134.0,133.99,1.99999999]
[1763671005499,12.79620465,134.0,133.98,1.99999999]
[1763671005694,12.79620465,133.99,133.97,1.99999999]
[1763671005920,1.86,133.98,133.97,1.99999999]
[1763671008511,1.86,133.98,133.95,1.99999999]
[1763671008726,1.86,133.98,133.97,1.99999999]
[1763671009230,2.52,133.98,133.97,1.99999999]
[1763671009807,1.86,133.98,133.97,1.99999999]
[1763671010039,2.52,133.98,133.97,1.99999999]
[1763671010407,1.86,133.98,133.97,1.99999999]
[1763671010836,2.55,133.98,133.97,1.99999999]
[1763671011026,32.80716465,133.98,133.95,1.99999999]
[1763671011334,32.80716465,133.98,133.92,9.78882769]
[1763671011335,12.82620465,133.97,133.96,1.99999999]
[1763671011531,0.69,133.97,133.96,1.99999999]
[1763671014141,1.86,133.98,133.96,1.99999999]
[1763671014347,18.12096,133.97,133.96,1.99999999]
[1763671014542,1.86,133.98,133.97,1.99999999]
[1763671014951,2.55,133.98,133.97,1.99999999]
[1763671015619,14.68620465,133.98,133.97,1.99999999]
[1763671015819,2.55,133.98,133.97,1.99999999]
[1763671016018,2.55,133.98,133.95,1.99999999]
[1763671016250,1.86,133.98,133.97,1.99999999]
[1763671016629,1.86,133.98,133.91,9.88882769]
[1763671016630,13.99620465,133.98,133.95,1.99999999]
[1763671016832,12.82620465,133.97,133.96,1.99999999]
[1763671017036,12.82620465,133.97,133.94,1.99999999]
[1763671017221,0.69,133.97,133.96,1.99999999]
[1763671017926,1.86,133.98,133.96,1.99999999]
[1763671018136,2.55,133.98,133.97,1.99999999]
[1763671018527,32.80716465,133.98,133.95,1.99999999]
[1763671018729,12.13620465,133.96,133.93,1.99999999]
[1763671019024,12.13620465,133.96,133.89,0.1]
[1763671019025,12.13620465,133.96,133.94,1.99999999]
[1763671019233,12.82620465,133.96,133.95,1.99999999]
[1763671019951,0.69,133.96,133.95,1.99999999]
[1763671020456,0.69,134.02,134.0,1.99999999]
[1763671020637,50.0,134.07,134.0,1.99999999]
[1763671020836,12.82620465,134.04,134.01,1.99999999]
[1763671021053,0.69,134.04,134.01,1.99999999]
[1763671021239,0.69,134.08,134.06,1.99999999]
[1763671021439,50.0,134.13,134.04,1.99999999]
[1763671021440,14.68620465,134.07,134.04,1.99999999]
[1763671021639,12.13620465,134.05,134.04,1.99999999]
[1763671022061,12.82620465,134.05,134.03,1.99999999]
[1763671022236,18.12096,134.04,134.03,1.99999999]
[1763671022567,0.69,134.04,134.03,1.99999999]
[1763671023172,0.69,134.05,134.03,1.99999999]
[1763671023353,12.82620465,134.04,134.01,1.99999999]
[1763671023656,59.31882633,134.07,134.01,1.99999999]
[1763671023657,12.13620465,134.02,134.01,1.99999999]
[1763671023844,13.99620465,134.02,134.01,1.99999999]
[1763671024052,14.68620465,134.02,134.0,1.99999999]
[1763671024252,30.25716465,134.01,134.0,1.99999999]
[1763671024464,30.94716465,134.01,134.0,1.99999999]
[1763671024941,18.81096,134.01,134.0,1.99999999]
[1763671025141,18.12096,134.01,134.0,1.99999999]
[1763671025871,1.86,134.05,134.0,1.99999999]
[1763671026033,18.81096,134.04,134.01,1.99999999]
[1763671026234,12.13620465,134.03,134.01,1.99999999]
[1763671026534,12.82620465,134.03,134.01,1.99999999]
[1763671026935,8.43574882,134.03,134.01,1.99999999]
[1763671027357,8.43574882,134.02,134.01,1.99999999]
[1763671028661,0.69,134.02,134.01,1.99999999]
[1763671028837,7.74574882,134.03,134.01,1.99999999]
[1763671029040,0.69,134.02,134.01,1.99999999]
[1763671031162,0.69,134.02,134.0,1.99999999]
[1763671031356,8.43574882,134.02,134.01,1.99999999]
[1763671031547,8.43574882,134.02,133.93,87.06670882]
[1763671031548,28.41670882,134.02,133.99,1.99999999]
[1763671031862,25.86670882,134.0,133.99,1.99999999]
[1763671032067,18.12096,134.0,133.99,1.99999999]
[1763671032686,8.43574882,134.0,133.99,1.99999999]
[1763671033966,7.74574882,134.0,133.99,1.99999999]
[1763671034288,8.43574882,134.0,133.97,1.99999999]
[1763671034440,8.43574882,134.0,133.87,24.51515367]
[1763671034441,7.74574882,133.98,133.96,1.99999999]
[1763671034642,9.60574882,133.97,133.96,1.99999999]
[1763671035243,10.29574882,133.97,133.96,1.99999999]
[1763671035871,18.12096,133.94,133.91,1.99999999]
[1763671036042,9.60574882,133.93,133.9,1.99999999]
[1763671036243,7.74574882,133.91,133.88,2.09999999]
[1763671036475,25.86670882,133.89,133.88,0.1]
[1763671036668,27.72670882,133.89,133.88,0.1]
[1763671036865,1.86,133.89,133.88,0.1]
[1763671037768,1.86,133.89,133.88,2.09999999]
[1763671038472,18.12096,133.92,133.91,1.99999999]
[1763671038473,1.86,133.92,133.91,1.99999999]
[1763671039356,10.29574882,133.92,133.89,1.99999999]
[1763671039559,8.43574882,133.91,133.89,1.99999999]
[1763671039776,8.43574882,133.91,133.9,1.99999999]
[1763671040284,18.12096,133.89,133.88,0.1]
[1763671040453,25.86670882,133.89,133.88,0.1]
[1763671040654,26.55670882,133.89,133.88,0.1]
[1763671041075,26.55670882,133.89,133.83,2.09999999]
[1763671041076,18.12096,133.85,133.83,2.09999999]
[1763671041263,1.86,133.84,133.83,0.1]
[1763671042972,1.86,133.84,133.83,2.09999999]
[1763671045262,9.60574882,133.84,133.83,2.09999999]
[1763671045572,1.86,133.84,133.83,2.09999999]
[1763671046701,10.29574882,133.84,133.83,0.1]
[1763671047777,28.41670882,133.84,133.83,0.1]
[1763671049581,28.41670882,133.84,133.8,2.09999999]
[1763671049582,18.12096,133.81,133.8,2.09999999]
[1763671049794,25.86670882,133.81,133.8,2.09999999]
[1763671049968,26.55670882,133.81,133.76,1.99999999]
[1763671050171,26.55670882,133.81,133.75,0.1]
[1763671050172,2.57,133.8,133.77,1.99999999]
[1763671050397,1.86,133.8,133.77,1.99999999]
[1763671050674,1.86,133.8,133.79,1.99999999]
[1763671051306,10.31574882,133.8,133.76,1.99999999]
[1763671051466,8.45574882,133.79,133.77,1.99999999]
[1763671051872,8.45574882,133.79,133.75,2.09999999]
[1763671052175,0.71,133.79,133.77,1.99999999]
[1763671052398,18.12096,133.79,133.77,1.99999999]
[1763671052608,19.98096,133.8,133.79,1.99999999]
[1763671052916,1.86,133.8,133.79,1.99999999]
[1763671054685,26.57670882,133.83,133.81,1.99999999]
[1763671054887,1.86,133.82,133.81,1.99999999]
[1763671055486,2.57,133.82,133.81,1.99999999]
[1763671055700,1.86,133.82,133.81,1.99999999]
[1763671056197,2.57,133.82,133.81,1.99999999]
[1763671056376,10.31574882,133.82,133.79,1.99999999]
[1763671056572,8.45574882,133.81,133.8,1.99999999]
[1763671056774,9.78882769,133.86,133.8,1.99999999]
[1763671056775,50.0,133.89,133.83,1.99999999]
[1763671056980,50.0,133.89,133.8,7.74574882]
[1763671056981,1.86,133.88,133.87,1.99999999]
[1763671057188,0.71,133.93,133.87,9.74574881]
[1763671057391,0.71,133.93,133.84,7.74574882]
[1763671057392,1.86,133.92,133.9,1.99999999]
[1763671057714,19.98096,133.91,133.9,1.99999999]
[1763671057907,1.86,133.91,133.9,1.99999999]
[1763671058090,1.86,133.91,133.88,9.74574881]
[1763671058290,19.98096,133.91,133.9,1.99999999]